{"text_format":"1","workbook":"xlsx","n_sheets":3,"sheets":["TALB1","data_validation","Sheet3"],"not_rendered":{"charts":0,"images":1,"macros":1,"external_links":0,"defined_names":1,"comments":0,"pivot_tables":0},"unopened":[],"bounds":{"document_bytes":16777216,"sheet_cells":100000,"rows_first":2000,"rows_last":500,"rows_between":2000,"halvings":0,"cell_chars":16384,"cell_head_chars":4096},"cells_cut":0,"cells_raw":0,"read":"whole","date_system":"1900"}

{"sheet":"TALB1","index":0,"n_rows":24,"n_cols":13,"rows_kept":24,"cut":false,"hidden":false,"merged":[[0,0,0,1]]}
["مركـــــــــــــــز المعــــــــــلومات  /  Centre d'information",null,null,null,null,null,null,null,null,null,null,null,"K3&\" \"&L3"]
["الرقم","الاسم و اللقب","اسم المشروع ","سنة المشروع ","حالة المشروع ","مبلغ الصفقة","مدة المشروع ","حالة الملف ","رقم الملف ","KKK","اللقب","الاسم"]
[null,{"$f":"K3&\" \"&L3","v":"محمد أمين 1"},"خضيرة سيارات","2016-02-08","مكتمل",1400002,"16 شهرا","كامل ",1102,1,"محمد","أمين 1","المشكلة"]
[null,{"$f":"K4&\" \"&L4","v":"محمد أمين 2"},"مصنع إسمنت","2016-02-09","مكتمل",3587400,"17 شهرا","كامل ",1103,1,"محمد","أمين 2","البحث  في الفورم من العمود b يقبل إظهار البيانات في الليست لما تكون البيانات بصيغة values  فقط! ولا يقبل formulas"]
[null,"محمد أمين 3","مصنع زجاج","2016-02-10","مكتمل",3587401,"18 شهرا","كامل ",1104,1,"محمد","أمين 3","إذ تم دمج الاسم مع اللقب"]
[null,"محمد أمين 4","مصنع شكلاطة ","2016-02-12","مكتمل",3587403,"20 شهرا","ناقص",1106,1,"محمد","أمين 4"]
[null,"محمد أمين 5","طريق البلدي حي الخفجي","2016-02-13","مكتمل",3587404,"21 شهرا","ناقص",1107,2,"محمد","أمين 5","المطلوب"]
[null,"محمد أمين 6","طريق البلدي حي الخفجي","2016-02-14","مكتمل",3587405,"22 شهرا","ناقص",1108,2,"محمد","أمين 6","إمكانية البحث في الفورم لما تكون بيانات العمود b بصيغة formulas"]
[null,"محمد أمين 7","طريق البلدي حي الخفجي","2016-02-15","مكتمل",3587406,"23 شهرا","ناقص",1109,2,"محمد","أمين 7"]
[null,"محمد أمين 8","طريق سيار شرق غرب","16-02-2016","مكتمل",3587407,"24 شهرا","كامل ",1110,2,"محمد","أمين 8"]
[null,"محمد أمين 9","محطات بنزين","2016-02-17","متوقف",3587408,"25 شهرا","ناقص",1111,null,"محمد","أمين 9"]
[null,"محمد أمين 10","طرمواي ورقلة ","2016-02-18","متوقف",3587409,"26 شهرا","ناقص",1112,null,"محمد","أمين 10"]
[null,"محمد أمين 11","خضيرة سيارات","2016-02-19","متوقف",3587410,"27 شهرا","ناقص",1113,null,"محمد","أمين 11"]
[null,"محمد أمين 12","مصنع إسمنت","2016-02-20","متوقف",3587411,"28 شهرا","ناقص",1114,null,"محمد","أمين 12"]
[null,"محمد أمين 13","مصنع زجاج","2016-02-22","متوقف",3587413,"30 شهرا","ناقص",1116,null,"محمد","أمين 13"]
[null,"محمد أمين 14","مصنع زجاج","2016-02-23","متوقف",3587414,"31 شهرا","ناقص",1117,null,"محمد","أمين 14"]
[null,"محمد أمين 15","مصنع زجاج","2016-02-24","متوقف",3587415,"32 شهرا","ناقص",1118,null,"محمد","أمين 15"]
[null,"محمد أمين 16","مصنع زجاج","2016-02-25","متوقف",3587416,"33 شهرا","ناقص",1119,null,"محمد","أمين 16"]
[null,"محمد أمين 17","مصنع زجاج","2016-02-26","متوقف",3587417,"34 شهرا","كامل ",1120,null,"محمد","أمين 17"]
[null,"محمد أمين 18","طرمواي ورقلة ","2016-02-27","متوقف",3587418,"35 شهرا","كامل ",1121,null,"محمد","أمين 18"]
[null,"محمد أمين 19","خضيرة سيارات","2016-02-28","متوقف",3587419,"36 شهرا","كامل ",1122,null,"محمد","أمين 19"]
[null,"محمد أمين 20","مصنع إسمنت","2016-02-29","متوقف",3587420,"37 شهرا","كامل ",1123,null,"محمد","أمين 20"]
[null,"محمد أمين 21","طريق سيار شرق غرب","16-02-2016","مكتمل",3587407,"24 شهرا","كامل ",1110,null,"محمد","أمين 21"]
[null,"محمد أمين 22","مصنع عطور","2016-01-01","منطلق",1200000,"12 شهرا","كامل ",5002,null,"محمد","أمين 22"]

{"sheet":"data_validation","index":1,"n_rows":18,"n_cols":12,"rows_kept":18,"cut":false,"hidden":false,"merged":[]}
[]
[]
[]
[]
[]
[]
[]
[]
[]
[null,null,null,null,null,null,null,null,null,null,"الاسم و اللقب","ناقص"]
[null,null,null,null,null,null,null,null,null,null,"اسم المشروع ","كامل "]
[null,null,null,null,null,null,null,null,null,null,"سنة المشروع "]
[null,null,null,null,null,null,null,null,null,null,"حالة المشروع "]
[null,null,null,null,null,null,null,null,null,null,"مبلغ الصفقة"]
[null,null,null,null,null,null,null,null,null,null,"مدة المشروع "]
[null,null,null,null,null,null,null,null,null,null,"حالة الملف "]
[null,null,null,null,null,null,null,null,null,null,"رقم الملف "]
[null,null,null,null,null,null,null,null,null,null,"kkk"]

{"sheet":"Sheet3","index":2,"n_rows":0,"n_cols":0,"rows_kept":0,"cut":false,"hidden":false,"merged":[]}